bitfinex/quotes_BTCUSD_20250902
["timestamp","ask_amount","ask_price","bid_price","bid_amount"]
[1756824826418,0.00941358,111550.0,111540.0,0.76761201]
[1756824826631,0.18241797,111550.0,111540.0,0.34182787]
[1756824826837,0.18241797,111550.0,111540.0,0.76761201]
[1756824827034,0.0094131,111550.0,111540.0,0.76761201]
[1756824827380,0.00312618,111550.0,111540.0,0.76761201]
[1756824828323,0.18752797,111550.0,111540.0,0.002]
[1756824828463,0.19381517,111550.0,111540.0,0.16036]
[1756824830188,0.19381517,111550.0,111540.0,0.002]
[1756824830414,0.28573116,111550.0,111540.0,0.002]
[1756824830621,0.7083853,111550.0,111540.0,0.002]
[1756824830819,0.28573116,111550.0,111540.0,0.002]
[1756824831294,0.7083853,111550.0,111540.0,0.002]
[1756824831505,0.7694153,111550.0,111540.0,0.002]
[1756824832523,0.34676116,111550.0,111540.0,0.002]
[1756824832737,0.31269259,111550.0,111540.0,0.002]
[1756824833807,0.17930787,111540.0,111530.0,0.15828]
[1756824834009,0.19070507,111540.0,111530.0,0.15828]
[1756824834634,0.17932394,111530.0,111520.0,0.0752423]
[1756824834860,0.18443394,111530.0,111520.0,0.2334023]
[1756824835059,0.18128394,111530.0,111520.0,0.41486232]
[1756824835253,0.18545787,111540.0,111530.0,0.004]
[1756824835550,0.18659288,111540.0,111530.0,0.00312]
[1756824835761,0.18559288,111540.0,111530.0,0.00112]
[1756824835907,0.18755288,111540.0,111530.0,0.00112]
[1756824836111,0.17932394,111530.0,111520.0,0.41274232]
[1756824836422,0.30725997,111550.0,111530.0,0.17932394]
[1756824836639,0.18126793,111540.0,111530.0,0.00212]
[1756824837050,0.18838255,111550.0,111530.0,0.18457379]
[1756824837278,0.17930787,111540.0,111530.0,0.60409793]
[1756824837640,0.18130787,111540.0,111530.0,0.76329793]
[1756824837825,0.002,111540.0,111530.0,0.76329793]
[1756824838141,0.18130787,111540.0,111530.0,0.76229793]
[1756824838329,0.19153255,111550.0,111540.0,0.17930787]
[1756824838571,0.00012618,111550.0,111540.0,0.60461201]
[1756824838731,0.17941797,111550.0,111540.0,0.60208201]
[1756824838942,0.00012618,111550.0,111540.0,0.60208201]
[1756824839118,0.00012618,111550.0,111540.0,0.60108201]
[1756824839453,0.17941797,111550.0,111540.0,0.17842787]
[1756824839885,0.00012618,111550.0,111540.0,0.17842787]
[1756824840071,0.18452797,111550.0,111540.0,0.15812]
[1756824840470,0.18452797,111550.0,111540.0,0.158]
[1756824840471,0.19349255,111550.0,111540.0,0.158]
[1756824840672,0.19549255,111550.0,111540.0,0.161]
[1756824841939,0.19649255,111550.0,111540.0,0.163]
[1756824842563,0.71734702,111550.0,111540.0,0.16292]
[1756824842794,0.99944108,111550.0,111540.0,0.005]
[1756824843175,0.84148108,111550.0,111540.0,0.005]
[1756824843387,0.60378966,111550.0,111540.0,0.005]
[1756824843589,1.0264438,111550.0,111540.0,0.005]
[1756824843757,0.96233974,111550.0,111540.0,0.003]
[1756824844156,0.17930787,111540.0,111530.0,0.15796]
[1756824844403,0.17932394,111530.0,111520.0,0.1700823]
[1756824844634,0.18443394,111530.0,111520.0,0.1700823]
[1756824844834,0.27122386,111540.0,111520.0,0.77672646]
[1756824844983,0.18128394,111530.0,111520.0,0.35154232]
[1756824845182,0.18443394,111530.0,111520.0,0.35154232]
[1756824845542,0.18643394,111530.0,111520.0,0.1731223]
[1756824845753,0.18643394,111530.0,111520.0,0.16108]
[1756824845945,0.18328394,111530.0,111520.0,0.34254002]
[1756824846146,0.002,111530.0,111520.0,0.34254002]
[1756824846354,0.002,111530.0,111520.0,0.76772416]
[1756824846559,0.18132394,111530.0,111520.0,0.34254002]
[1756824846760,0.18328394,111530.0,111520.0,0.19654683]
[1756824846934,0.18428394,111530.0,111520.0,0.01920681]
[1756824847098,0.18743394,111530.0,111520.0,0.005]
[1756824847304,0.18743394,111530.0,111520.0,0.16296]
[1756824848621,0.27934993,111530.0,111520.0,0.16296]
[1756824849580,0.10002599,111530.0,111520.0,0.34439002]
[1756824849796,0.003,111530.0,111520.0,0.76704416]
[1756824850000,0.003,111530.0,111520.0,0.76957416]
[1756824850465,0.003,111530.0,111520.0,0.76704416]
[1756824851006,0.003,111530.0,111520.0,0.76957416]
[1756824851890,0.003,111530.0,111520.0,0.34439002]
[1756824852096,0.003,111530.0,111520.0,0.83024416]
[1756824852657,0.00289996,111530.0,111520.0,0.83024416]
[1756824852980,0.00289996,111530.0,111520.0,0.24963002]
[1756824853204,0.00289996,111530.0,111520.0,0.34435002]
[1756824853832,0.00289996,111530.0,111520.0,0.76953416]
[1756824854361,0.00289996,111530.0,111520.0,0.76700416]
[1756824854711,0.00289996,111530.0,111520.0,0.76953416]
[1756824855321,0.00289996,111530.0,111520.0,1.64504311]
[1756824856053,0.00496996,111530.0,111520.0,0.34427002]
[1756824856256,0.00496996,111530.0,111520.0,0.60908416]
[1756824856433,0.00496996,111530.0,111520.0,0.18643002]
[1756824856434,0.1873939,111530.0,111520.0,0.18643002]
[1756824856636,0.1873939,111530.0,111520.0,0.005]
[1756824856836,0.19369737,111530.0,111520.0,0.16284]
[1756824858676,0.19269737,111530.0,111520.0,0.16084]
[1756824858851,0.19079741,111530.0,111520.0,0.15784]
[1756824859024,0.01147347,111530.0,111520.0,0.15784]
[1756824859231,0.19279741,111530.0,111520.0,0.33718002]
[1756824859450,0.17934002,111520.0,111510.0,0.01169053]
[1756824859624,0.18244002,111520.0,111500.0,0.70475276]
[1756824859831,0.18451002,111520.0,111510.0,0.33928611]
[1756824860312,0.19081407,111520.0,111500.0,0.24245055]
[1756824860511,0.27963006,111520.0,111510.0,0.15784]
[1756824860709,0.17935688,111510.0,111490.0,0.19990883]
[1756824860930,0.17935688,111510.0,111500.0,0.15784]
[1756824861152,0.17937219,111500.0,111490.0,0.53990883]
[1756824861327,0.00207,111500.0,111490.0,0.69983883]
[1756824861689,0.27535822,111520.0,111500.0,0.17937219]
[1756824861819,0.27535822,111520.0,111510.0,0.15784]
[1756824861820,0.28366092,111520.0,111510.0,0.15784]
[1756824862017,0.17935611,111510.0,111500.0,0.00046911]
[1756824862245,0.17935611,111510.0,111500.0,0.3376813]
[1756824862447,0.18452611,111510.0,111500.0,0.3356813]
[1756824863019,0.27435822,111520.0,111500.0,0.3377713]
[1756824863259,0.28065941,111520.0,111500.0,0.3377713]
[1756824863459,0.00630119,111520.0,111510.0,0.17935611]
[1756824863654,0.18564121,111520.0,111510.0,0.18144611]
[1756824863863,0.18771121,111520.0,111510.0,0.18144611]
[1756824864070,0.18971121,111520.0,111510.0,0.18244611]
[1756824864275,0.18771121,111520.0,111510.0,0.17835611]
[1756824864486,0.17935623,111510.0,111490.0,0.53093942]
[1756824864681,0.18142623,111510.0,111500.0,0.33930219]
[1756824864884,0.18452623,111510.0,111500.0,0.33721219]
[1756824865234,0.18452623,111510.0,111500.0,0.15784]
[1756824865423,0.18452623,111510.0,111490.0,0.19107961]
[1756824865629,0.18247219,111500.0,111490.0,0.00114019]
[1756824866081,0.19084101,111500.0,111490.0,0.00114019]
[1756824866884,0.19084101,111500.0,111490.0,0.00014019]
[1756824867203,1.00010771,111500.0,111490.0,0.00014019]
[1756824867355,0.499787,111500.0,111490.0,0.00014019]
[1756824867556,0.500787,111500.0,111490.0,0.00114019]
[1756824867800,0.502787,111500.0,111490.0,0.00314019]
[1756824868004,0.343907,111500.0,111490.0,0.00214019]
[1756824868159,0.501747,111500.0,111490.0,0.00214019]
[1756824868365,0.502747,111500.0,111490.0,0.00414019]
[1756824868577,0.344907,111500.0,111490.0,0.00414019]
[1756824870255,0.19384101,111500.0,111490.0,0.18561847]
[1756824870467,0.19074101,111500.0,111490.0,0.18561847]
[1756824870675,0.18867101,111500.0,111490.0,0.18561847]
[1756824871026,0.00929882,111500.0,111490.0,0.18561847]
[1756824871231,0.00929882,111500.0,111490.0,0.84381918]
[1756824871516,0.00929882,111500.0,111490.0,0.18561847]
[1756824872588,0.18867101,111500.0,111490.0,0.18561847]
[1756824872728,0.19074101,111500.0,111490.0,0.00623019]
[1756824872954,0.19384101,111500.0,111490.0,0.00414019]
[1756824873156,0.19384101,111500.0,111490.0,0.16202019]
[1756824873927,0.19384101,111500.0,111490.0,0.34140847]
[1756824874132,0.01446882,111500.0,111490.0,0.34140847]
[1756824874342,0.19384101,111500.0,111490.0,0.16202019]
[1756824874762,0.19384101,111500.0,111490.0,0.34140847]
[1756824875018,0.00929882,111500.0,111490.0,1.00169918]
[1756824875238,0.003,111500.0,111490.0,1.52032399]
[1756824876387,0.003,111500.0,111490.0,1.36244399]
[1756824876596,0.003,111500.0,111490.0,1.35991399]
[1756824876771,0.003,111500.0,111490.0,1.51779399]
[1756824877067,0.003,111500.0,111490.0,1.33897517]
[1756824877304,0.003,111500.0,111490.0,1.49685517]
[1756824877503,0.003,111500.0,111490.0,1.34150517]
[1756824877643,0.003,111500.0,111490.0,1.49685517]
[1756824879518,0.003,111500.0,111490.0,1.49938517]
[1756824880293,0.003,111500.0,111490.0,1.49685517]
[1756824880533,0.003,111500.0,111490.0,0.83865446]
[1756824880761,0.003,111500.0,111490.0,1.49685517]
[1756824881714,0.003,111500.0,111490.0,0.83865446]
[1756824881942,0.003,111500.0,111490.0,1.49685517]
[1756824882104,0.003,111500.0,111490.0,1.49938517]
[1756824882697,0.003,111500.0,111490.0,1.52032399]
[1756824883096,0.003,111500.0,111490.0,0.86212328]
[1756824883315,0.003,111500.0,111490.0,1.52032399]
[1756824883545,0.003,111500.0,111490.0,0.70171328]
[1756824883731,0.18771219,111500.0,111490.0,0.00414019]
[1756824883937,0.18771219,111500.0,111490.0,0.16202019]
[1756824884137,0.18771219,111500.0,111490.0,0.00414019]
[1756824884337,0.18771219,111500.0,111490.0,0.16202019]
[1756824885307,0.1940063,111500.0,111490.0,0.16202019]
[1756824885550,0.28592229,111500.0,111490.0,0.00414019]
[1756824885754,0.28592229,111500.0,111490.0,0.16202019]
[1756824886169,0.28592229,111500.0,111490.0,0.00414019]
[1756824888775,0.34082229,111500.0,111490.0,0.00414019]
[1756824890892,0.28592229,111500.0,111490.0,0.00414019]
[1756824892496,0.34082229,111500.0,111490.0,0.00414019]
[1756824894480,0.28592229,111500.0,111490.0,0.00414019]
[1756824896117,0.1908163,111500.0,111490.0,0.18563847]
[1756824896298,0.1908163,111500.0,111490.0,0.00625019]
[1756824896596,0.1940063,111500.0,111490.0,0.34140847]
[1756824896816,0.1940063,111500.0,111490.0,0.16202019]
[1756824897032,0.1940063,111500.0,111490.0,0.16198019]
[1756824897428,0.1908163,111500.0,111490.0,0.16409019]
[1756824897822,0.1940063,111500.0,111490.0,0.34347847]
[1756824898034,0.1940063,111500.0,111490.0,0.16409019]
[1756824898242,0.1940063,111500.0,111490.0,0.00625019]
[1756824898443,0.1940063,111500.0,111490.0,0.16198019]
[1756824898900,0.1940063,111500.0,111490.0,0.34136847]
[1756824899113,0.1908163,111500.0,111490.0,0.34347847]
[1756824899521,0.00929411,111500.0,111490.0,1.00167918]
[1756824899719,0.003,111500.0,111490.0,0.34600847]
[1756824899925,0.003,111500.0,111490.0,1.00420918]
[1756824900132,0.18237219,111500.0,111490.0,0.34347847]
[1756824900377,0.18237219,111500.0,111490.0,0.00625019]
[1756824900579,0.18237219,111500.0,111490.0,0.16409019]
[1756824900875,0.18237219,111500.0,111490.0,0.34347847]
[1756824901253,0.18452219,111500.0,111490.0,0.34347847]
[1756824901463,0.18237219,111500.0,111490.0,0.34347847]
[1756824901987,0.003,111500.0,111490.0,0.34347847]
[1756824902485,0.18237219,111500.0,111490.0,0.34347847]
[1756824902742,0.00515,111500.0,111490.0,0.34347847]
[1756824902926,0.18452219,111500.0,111490.0,0.34347847]
[1756824903136,0.18771219,111500.0,111490.0,0.34347847]
[1756824903343,0.18771219,111500.0,111490.0,0.16198019]
[1756824903748,0.18771219,111500.0,111490.0,0.42448019]
[1756824904176,0.18452219,111500.0,111490.0,0.60597847]
[1756824904577,0.18452219,111500.0,111490.0,0.42659019]
[1756824904783,0.18452219,111500.0,111490.0,0.60597847]
[1756824905141,0.18771219,111500.0,111490.0,0.60386847]
[1756824905339,0.18452219,111500.0,111490.0,0.60597847]
[1756824905569,0.18237219,111500.0,111490.0,0.60597847]
[1756824906180,0.18452219,111500.0,111490.0,0.42659019]
[1756824906385,0.18771219,111500.0,111490.0,0.42448019]
[1756824906755,0.18771219,111500.0,111490.0,0.60597847]
[1756824906953,0.18452219,111500.0,111490.0,0.60597847]
[1756824907629,0.18237219,111500.0,111490.0,0.60597847]
[1756824909432,0.18137219,111500.0,111490.0,0.60397847]
[1756824909873,0.18237219,111500.0,111490.0,0.60497847]
[1756824910104,0.003,111500.0,111490.0,0.60497847]
[1756824910518,0.001,111500.0,111490.0,1.26370918]
[1756824910938,0.002,111500.0,111490.0,1.26870918]
[1756824912478,0.002,111500.0,111490.0,0.61050847]
[1756824912727,0.002,111500.0,111490.0,1.26870918]
[1756824914331,0.002,111500.0,111490.0,1.24362832]
[1756824914543,0.002,111500.0,111490.0,1.40142832]
[1756824917027,0.002,111500.0,111490.0,1.42236714]
[1756824918632,0.002,111500.0,111490.0,1.86066714]
[1756824919286,0.002,111500.0,111490.0,1.04002643]
[1756824919492,0.002,111500.0,111490.0,1.85801714]
[1756824919732,0.002,111500.0,111490.0,1.86054714]
[1756824920164,0.002,111500.0,111490.0,1.70025714]
[1756824920484,0.002,111500.0,111490.0,1.85801714]
[1756824920835,0.002,111500.0,111490.0,1.04205643]
[1756824921036,0.002,111500.0,111490.0,1.85801714]
[1756824921246,0.002,111500.0,111490.0,1.70025714]
[1756824921439,0.002,111500.0,111490.0,1.85801714]
[1756824921825,0.002,111500.0,111490.0,1.19981643]
[1756824922036,0.002,111500.0,111490.0,1.85801714]
[1756824922249,0.002,111500.0,111490.0,1.70025714]
[1756824922458,0.002,111500.0,111490.0,1.86054714]
[1756824923619,0.002,111500.0,111490.0,1.62525347]
[1756824923834,0.002,111500.0,111490.0,1.20234643]
[1756824924070,0.00406,111500.0,111490.0,1.62272347]
[1756824924493,0.002,111500.0,111490.0,1.62272347]
[1756824925237,0.00406,111500.0,111490.0,1.62069347]
[1756824925509,0.00406,111500.0,111490.0,1.62272347]
[1756824926249,0.18654219,111500.0,111490.0,0.00614019]
[1756824926466,0.78359139,111500.0,111490.0,0.00614019]
[1756824926683,1.12989379,111500.0,111490.0,0.00614019]
[1756824926903,1.12989379,111500.0,111460.0,0.0004]
[1756824926904,0.17942047,111470.0,111460.0,0.0004]
[1756824927122,0.17942047,111470.0,111460.0,0.15816]
[1756824927327,0.19089461,111470.0,111460.0,0.15816]
[1756824927541,0.18459047,111470.0,111460.0,0.15816]
[1756824927729,0.18259047,111470.0,111460.0,0.15816]
[1756824927885,0.17659047,111470.0,111460.0,0.15816]
[1756824928879,0.75441031,111470.0,111460.0,0.0024]
[1756824929091,1.25213031,111470.0,111460.0,0.0024]
[1756824929299,0.85574944,111470.0,111460.0,0.0024]
[1756824929531,1.27965648,111470.0,111460.0,0.0064]
[1756824929910,1.25213031,111470.0,111460.0,0.0024]
[1756824930115,1.25213031,111470.0,111460.0,0.0044]
[1756824930347,1.25313031,111470.0,111460.0,0.0044]
[1756824930559,1.25213031,111470.0,111460.0,0.0004]
[1756824930778,1.37157247,111470.0,111460.0,0.0014]
[1756824930985,1.40223595,111470.0,111460.0,1e-08]
[1756824931203,0.17946877,111440.0,111430.0,0.0524]
[1756824931666,0.17948487,111430.0,111420.0,0.16875589]
[1756824931872,0.17950519,111420.0,111400.0,0.94745003]
[1756824932075,0.18261519,111420.0,111410.0,0.15776]
[1756824932275,0.18467519,111420.0,111410.0,0.15776]
[1756824932483,0.18156519,111420.0,111410.0,0.33977629]
[1756824932730,0.18467519,111420.0,111410.0,0.34852717]
[1756824932963,0.17950098,111420.0,111410.0,0.35055717]
[1756824933161,0.19156911,111430.0,111410.0,0.19279717]
[1756824933366,0.18467098,111420.0,111410.0,0.35055717]
[1756824933568,0.18867098,111420.0,111410.0,0.77346421]
[1756824933991,0.18656098,111420.0,111410.0,0.35055717]
[1756824934415,0.18656098,111420.0,111410.0,0.17104008]
[1756824934620,0.18967098,111420.0,111410.0,0.17104008]
[1756824934819,0.18967098,111420.0,111410.0,0.35055717]
[1756824935240,0.18967098,111420.0,111410.0,0.01125008]
[1756824935429,0.18967098,111420.0,111410.0,0.16901008]
[1756824935670,0.18967098,111420.0,111410.0,0.34852717]
[1756824935887,0.18967098,111420.0,111410.0,0.16901008]
[1756824936309,0.18867098,111420.0,111410.0,0.34852717]
[1756824936525,0.18567098,111420.0,111410.0,0.34852717]
[1756824936751,0.18767098,111420.0,111410.0,0.35055717]
[1756824936959,0.18767098,111420.0,111410.0,0.16901008]
[1756824937181,0.18767098,111420.0,111410.0,0.34852717]
[1756824937672,0.18767098,111420.0,111410.0,0.0004692]
[1756824937922,0.61057802,111420.0,111410.0,0.1582292]
[1756824938133,0.18767098,111420.0,111410.0,0.1582292]
[1756824938350,0.70249401,111420.0,111410.0,0.0004692]
[1756824938565,0.81158302,111420.0,111410.0,0.0004692]
[1756824938784,0.75819401,111420.0,111410.0,0.0004692]
[1756824938994,0.75619401,111420.0,111410.0,0.0004692]
[1756824939184,0.33228697,111420.0,111410.0,0.0004692]
[1756824939398,0.75519401,111420.0,111410.0,0.0004692]
[1756824939601,1.19011,111420.0,111410.0,0.0004692]
[1756824940018,0.82239261,111420.0,111410.0,0.0004692]
[1756824940241,1.44445964,111410.0,111400.0,1e-08]
[1756824940458,0.51953321,111400.0,111380.0,1e-08]
[1756824940669,0.54050427,111380.0,111370.0,0.00048]
[1756824940880,0.5195977,111360.0,111350.0,0.0004]
[1756824941085,1.19426073,111360.0,111350.0,0.0004]
[1756824941294,1.25066073,111360.0,111350.0,0.0004]
[1756824941502,0.82775369,111360.0,111350.0,0.0004]
[1756824941706,1.34257672,111360.0,111350.0,0.0004]
[1756824941904,1.25066073,111360.0,111350.0,0.0004]
[1756824942356,1.25066073,111360.0,111350.0,0.00048421]
[1756824942357,1.09286073,111360.0,111350.0,0.00048421]
[1756824942567,1.261623,111360.0,111350.0,0.00048421]
[1756824943012,1.261703,111360.0,111350.0,0.00048421]
[1756824943859,0.83879596,111360.0,111350.0,0.00048421]
[1756824944100,1.35361899,111360.0,111350.0,0.00048421]
[1756824944293,0.69015676,111360.0,111350.0,0.00048421]
[1756824944554,1.2709838,111360.0,111350.0,0.00048421]
[1756824944973,1.2709838,111360.0,111350.0,0.00254421]
[1756824944974,0.28075449,111360.0,111350.0,0.00254421]
[1756824945436,0.27070525,111360.0,111350.0,0.18215804]
[1756824945875,0.27378525,111360.0,111350.0,0.00048421]
[1756824946295,0.29039447,111360.0,111350.0,0.00048421]
[1756824946517,0.28739447,111360.0,111350.0,0.00048421]
[1756824946778,0.28839447,111360.0,111350.0,0.00048421]
[1756824946996,0.28527447,111360.0,111350.0,0.00254421]
[1756824947211,0.20750719,111360.0,111350.0,0.18215804]
[1756824947421,0.19089797,111360.0,111350.0,0.00254421]
[1756824947639,0.19089797,111360.0,111350.0,0.18215804]
[1756824948527,0.19293631,111360.0,111350.0,0.00048421]
[1756824948746,0.19601631,111360.0,111350.0,0.00048421]
[1756824949845,0.71083934,111360.0,111350.0,0.00048421]
[1756824950058,0.29415506,111360.0,111350.0,0.00048421]
[1756824950281,0.2828123,111360.0,111350.0,0.00254421]
[1756824950508,0.2848523,111360.0,111350.0,0.00254421]
[1756824950963,0.19293631,111360.0,111350.0,0.18215804]
[1756824951179,0.19293631,111360.0,111350.0,0.00254421]
[1756824951880,0.01129861,111360.0,111350.0,0.18516804]
[1756824952109,0.19089631,111360.0,111350.0,0.43263403]
[1756824952333,0.01333861,111360.0,111350.0,0.00254421]
[1756824952551,0.01333861,111360.0,111350.0,0.00048421]
[1756824952766,0.19293631,111360.0,111350.0,0.18215804]
[1756824953124,0.01129861,111360.0,111350.0,0.18215804]
[1756824953342,0.01129861,111360.0,111350.0,0.60807508]
[1756824953707,0.01129861,111360.0,111350.0,0.76671508]
[1756824953907,0.19089631,111360.0,111350.0,0.60506508]
[1756824954157,0.19089631,111360.0,111350.0,0.76370508]
[1756824954434,0.01129861,111360.0,111350.0,0.76671508]
[1756824954617,0.01129861,111360.0,111350.0,0.34380804]
[1756824954815,0.01129861,111360.0,111350.0,0.76671508]
[1756824955018,0.0113188,111360.0,111350.0,0.76671508]
[1756824955429,0.01132723,111360.0,111350.0,0.76671508]
[1756824955859,0.01132723,111360.0,111350.0,0.18516804]
[1756824956065,0.01132723,111360.0,111350.0,0.75790436]
[1756824956238,0.01132723,111360.0,111350.0,0.75941436]
[1756824956435,0.01132723,111360.0,111350.0,0.84832035]
[1756824956641,0.02538686,111360.0,111350.0,0.84927035]
[1756824956850,0.01132723,111360.0,111350.0,0.84927035]
[1756824957188,0.01132723,111360.0,111350.0,0.68874331]
[1756824957410,0.01132723,111360.0,111350.0,0.95222035]
[1756824957828,0.01132723,111360.0,111350.0,1.13258917]
[1756824958056,0.01132723,111360.0,111350.0,1.91088917]
[1756824958714,0.01132723,111360.0,111350.0,1.32950213]
[1756824958925,0.01132723,111360.0,111350.0,1.48707213]
[1756824959167,0.01132723,111360.0,111350.0,1.91092917]
[1756824959628,0.01132723,111360.0,111350.0,1.91096917]
[1756824960199,0.01132723,111360.0,111350.0,1.47266917]
[1756824960413,0.01132723,111360.0,111350.0,1.94557621]
[1756824960618,0.003,111360.0,111350.0,0.94120213]
[1756824960835,0.003,111360.0,111350.0,2.38391621]
[1756824961439,1e-08,111360.0,111350.0,1.99561621]
[1756824961659,0.20346796,111410.0,111400.0,0.17953321]
[1756824961889,0.18261321,111400.0,111380.0,0.5143476]
[1756824962106,0.19927401,111400.0,111390.0,0.33634933]
[1756824962324,0.23524543,111400.0,111390.0,0.1588]
[1756824962537,0.17954933,111390.0,111380.0,0.50538545]
[1756824962759,0.19829013,111390.0,111380.0,0.48462]
[1756824962979,0.19929013,111390.0,111380.0,0.66426953]
[1756824963197,0.21855831,111390.0,111380.0,1.08717657]
[1756824963431,0.0187408,111390.0,111380.0,1.08717657]
[1756824963667,0.0136208,111390.0,111380.0,1.08868657]
[1756824964095,0.00835474,111390.0,111380.0,1.20249138]
[1756824964523,0.00835474,111390.0,111380.0,1.27999138]
[1756824964757,0.01405484,111420.0,111410.0,0.17951709]
[1756824964971,0.22630765,111420.0,111410.0,0.15884]
[1756824965178,0.24303081,111420.0,111410.0,0.15484]
[1756824965394,0.22897597,111420.0,111410.0,0.33435709]
[1756824965864,0.22997597,111420.0,111410.0,0.33435709]
[1756824966114,0.22997597,111420.0,111410.0,0.15484]
[1756824966335,0.22997597,111420.0,111410.0,0.33435709]
[1756824966544,0.04739499,111420.0,111410.0,0.75877413]
[1756824966741,0.04535499,111420.0,111410.0,0.75877413]
[1756824966958,0.22997597,111420.0,111410.0,0.33835709]
[1756824967159,0.22997597,111420.0,111410.0,0.76126413]
[1756824967413,0.04535499,111420.0,111410.0,0.76077413]
[1756824968141,0.03063183,111420.0,111410.0,0.76577413]
[1756824968387,0.22889902,111420.0,111410.0,0.64767316]
[1756824968625,0.23197902,111420.0,111410.0,0.38209612]
[1756824968833,0.05247804,111420.0,111410.0,0.38209612]
[1756824969067,0.03063183,111420.0,111410.0,0.98264797]
[1756824969314,0.03063183,111420.0,111410.0,0.82475797]
[1756824969315,0.01136158,111420.0,111410.0,0.82475797]
[1756824969540,0.01136158,111420.0,111410.0,0.55982093]
[1756824970067,0.01136158,111420.0,111410.0,0.98272797]
[1756824970292,0.003,111420.0,111410.0,0.98272797]
[1756824970960,0.003,111420.0,111410.0,0.55982093]
[1756824971196,0.003,111420.0,111410.0,0.98272797]
[1756824972104,0.003,111420.0,111410.0,1.32367797]
[1756824972344,0.003,111420.0,111410.0,1.32272797]
[1756824972556,0.003,111420.0,111410.0,1.32367797]
[1756824973404,0.003,111420.0,111410.0,1.32272797]
[1756824973616,0.003,111420.0,111410.0,1.32367797]
[1756824973874,0.003,111420.0,111410.0,1.37367797]
[1756824974520,0.002,111420.0,111410.0,1.37367797]
[1756824974733,0.002,111420.0,111410.0,1.77367797]
[1756824974961,0.001,111420.0,111410.0,1.61075797]
[1756824975203,0.001,111420.0,111410.0,1.71951797]
[1756824975415,0.003,111420.0,111410.0,1.72451797]
[1756824975849,0.003,111420.0,111410.0,1.77451797]
[1756824976059,0.002,111420.0,111410.0,1.77351797]
[1756824976500,0.002,111420.0,111410.0,1.61475797]
[1756824976706,0.002,111420.0,111410.0,1.77347797]
[1756824977119,0.07671631,111450.0,111440.0,0.17946877]
[1756824977336,0.09338476,111450.0,111440.0,0.76101581]
[1756824977812,0.01983845,111450.0,111440.0,0.76101581]
[1756824978021,0.01459845,111450.0,111440.0,0.76252581]
[1756824978231,0.01405093,111450.0,111440.0,0.76093581]
[1756824978453,0.17946877,111440.0,111430.0,0.46292251]
[1756824978673,0.19931133,111440.0,111430.0,0.69254086]
[1756824978921,0.19631133,111440.0,111430.0,0.69254086]
[1756824979356,0.19931133,111440.0,111430.0,0.69254086]
[1756824979794,0.19931133,111440.0,111420.0,0.17949441]
[1756824980028,0.00317,111430.0,111420.0,0.17949441]
[1756824980227,0.00317,111430.0,111420.0,0.76100145]
[1756824980453,0.00524,111430.0,111420.0,0.76100145]
[1756824980665,0.00417,111440.0,111430.0,0.18347706]
[1756824980880,0.18570877,111440.0,111430.0,0.004]
[1756824981104,0.19932125,111440.0,111430.0,0.15856]
[1756824981321,0.20032125,111440.0,111430.0,0.001]
[1756824981540,0.17948487,111430.0,111420.0,0.27541206]
[1756824981750,0.19933735,111430.0,111420.0,0.33805607]
[1756824982188,0.01585248,111430.0,111420.0,0.33805607]
[1756824982644,0.19533735,111430.0,111420.0,0.33805607]
[1756824982833,0.01685248,111430.0,111420.0,0.33956607]
[1756824983251,0.01685248,111430.0,111420.0,0.33805607]
[1756824983468,0.01686266,111430.0,111420.0,0.76096311]
[1756824983900,0.01686266,111430.0,111420.0,1.02346311]
[1756824984126,0.01362266,111430.0,111420.0,0.98326792]
[1756824984347,0.01136404,111430.0,111420.0,1.14162792]
[1756824984594,0.003,111430.0,111420.0,1.14162792]
[1756824985499,0.003,111430.0,111420.0,1.37874447]
[1756824985714,0.003,111430.0,111420.0,1.71874447]
[1756824987077,0.003,111430.0,111420.0,1.71775447]
[1756824987540,0.003,111430.0,111420.0,1.71870447]
[1756824987991,0.003,111430.0,111420.0,1.71775447]
[1756824989482,0.003,111430.0,111420.0,1.71775447]
[1756824989696,0.00507,111430.0,111420.0,1.05876088]
[1756824989910,0.00824,111430.0,111420.0,0.71725088]
[1756824990119,0.00824,111430.0,111420.0,1.37632447]
[1756824990603,0.00824,111430.0,111420.0,0.18349607]
[1756824990825,0.03594889,111430.0,111420.0,0.34193607]
[1756824992404,0.03070889,111430.0,111420.0,1.11537447]
[1756824992926,0.21543376,111430.0,111420.0,0.18350098]
[1756824993135,0.21543376,111430.0,111420.0,0.34182098]
[1756824993338,0.23938463,111430.0,111420.0,0.004]
[1756824993589,0.32600913,111430.0,111420.0,0.34182098]
[1756824993719,0.32500913,111430.0,111420.0,0.34182098]
[1756824993946,0.33542973,111430.0,111420.0,0.16232]
[1756824994147,0.17950098,111420.0,111410.0,0.24079709]
[1756824994366,0.17950098,111420.0,111410.0,0.39911709]
[1756824994367,0.24270314,111420.0,111410.0,0.39911709]
[1756824994584,0.06320216,111420.0,111410.0,0.39911709]
[1756824994781,0.03925129,111420.0,111410.0,0.39911709]
[1756824995183,0.24370314,111420.0,111410.0,0.22152]
[1756824995400,0.27563764,111420.0,111410.0,0.40103709]
[1756824995776,0.27763764,111420.0,111410.0,0.40103709]
[1756824995977,0.09613666,111420.0,111410.0,0.40103709]
[1756824996188,0.27563764,111420.0,111410.0,0.40103709]
[1756824996389,0.09613666,111420.0,111410.0,0.40103709]
[1756824996595,0.05481522,111420.0,111410.0,0.40254709]
[1756824996791,0.05798083,111420.0,111410.0,1.17447549]
[1756824997027,0.03502996,111420.0,111410.0,1.17447549]
[1756824997242,0.00940458,111420.0,111410.0,1.17542549]
[1756824997445,0.0140511,111440.0,111430.0,0.17948487]
[1756824997647,0.02875804,111440.0,111430.0,1.11108327]
[1756824997924,0.04812099,111440.0,111430.0,1.11008327]
[1756824998095,0.05019099,111440.0,111430.0,0.44949968]
[1756824998315,0.04812099,111440.0,111430.0,0.44900968]
[1756824998463,0.04912099,111440.0,111430.0,0.44900968]
[1756824998883,0.03506989,111440.0,111430.0,0.44900968]
[1756824999121,0.03706989,111440.0,111430.0,1.10908327]
[1756824999322,0.03707059,111440.0,111430.0,1.10908327]
[1756824999534,0.03507059,111440.0,111430.0,0.29084968]
[1756824999739,0.04016059,111440.0,111430.0,0.44773968]
[1756824999956,0.03916059,111440.0,111430.0,0.44773968]
[1756825000146,0.04016059,111440.0,111430.0,0.29033968]
[1756825000359,0.04016059,111440.0,111430.0,0.44881968]
[1756825000569,0.03507059,111440.0,111430.0,0.45032968]
[1756825000806,0.03407059,111440.0,111430.0,0.44932968]
[1756825001010,0.03407059,111440.0,111430.0,1.10840327]
[1756825001223,0.03817059,111440.0,111430.0,0.29484968]
[1756825001421,0.04016059,111440.0,111430.0,0.44893968]